{"text_format":"3","workbook":"xlsx","n_sheets":2,"sheets":["Proračun za vjenčanje","Pojedinosti proračuna"],"not_rendered":{"charts":1,"images":1,"defined_names":2},"read":"whole","date_system":"1900"}

{"sheet":"Proračun za vjenčanje","index":0,"n_rows":16,"n_cols":16,"rows_kept":16,"merged":[[1,1,1,5]]}
[{"$nulls":6}," "]
[null,"IVANA + DANIJEL\nRECITE SUDBONOSNO „DA”"]
[{"$nulls":7}," "]
[]
[null,"KATEGORIJA","PROCIJENJENI TROŠAK","STVARNI TROŠAK","ODSTUPANJE","% PRORAČUNA",{"$nulls":3},"Nesortirano","Procijenjeni troškovi","Stvarni troškovi","Procijenjeni troškovi – Vrijednost ranga","Rang","#","Sortirano"]
[null,{"$f":"P6","v":"Prijem"},{"$f":"VLOOKUP(TBL_Summary[[#This Row],[KATEGORIJA]],TBL_RankingData,2,FALSE)","v":{"v":14500,"d":"14,500 kn"}},{"$f":"IF(VLOOKUP(TBL_Summary[[#This Row],[KATEGORIJA]],TBL_RankingData,3,FALSE)=0,\"\",VLOOKUP(TBL_Summary[[#This Row],[KATEGORIJA]],TBL_RankingData,3,FALSE))","v":{"v":12800,"d":"12,800 kn"}},{"$f":"IF(OR(TBL_Summary[[#This Row],[PROCIJENJENI TROŠAK]]=\"\",TBL_Summary[[#This Row],[STVARNI TROŠAK]]=\"\"),\"\",TBL_Summary[[#This Row],[PROCIJENJENI TROŠAK]]-TBL_Summary[[#This Row],[STVARNI TROŠAK]])","v":{"v":1700,"d":"1,700 kn"}},{"$f":"TBL_Summary[[#This Row],[PROCIJENJENI TROŠAK]]/SUM(TBL_Summary[PROCIJENJENI TROŠAK])","v":{"v":0.48739495798319327,"d":"48.7%"}},{"$nulls":3},"Prijem",{"$f":"TBL_Reception[[#Totals],[PROCIJENJENO]]","v":14500},{"$f":"TBL_Reception[[#Totals],[STVARNO]]","v":12800},{"$f":"K6-O6/100","v":14499.99},{"$f":"_xlfn.RANK.AVG(M6,$M$6:$M$15)","v":1},1,{"$f":"INDEX(TBL_RankingData,MATCH(O6,$N$6:$N$15,0),1)","v":"Prijem"}]
[null,{"$f":"P7","v":"Odjeća"},{"$f":"VLOOKUP(TBL_Summary[[#This Row],[KATEGORIJA]],TBL_RankingData,2,FALSE)","v":{"v":4000,"d":"4,000 kn"}},{"$f":"IF(VLOOKUP(TBL_Summary[[#This Row],[KATEGORIJA]],TBL_RankingData,3,FALSE)=0,\"\",VLOOKUP(TBL_Summary[[#This Row],[KATEGORIJA]],TBL_RankingData,3,FALSE))","v":{"v":2900,"d":"2,900 kn"}},{"$f":"IF(OR(TBL_Summary[[#This Row],[PROCIJENJENI TROŠAK]]=\"\",TBL_Summary[[#This Row],[STVARNI TROŠAK]]=\"\"),\"\",TBL_Summary[[#This Row],[PROCIJENJENI TROŠAK]]-TBL_Summary[[#This Row],[STVARNI TROŠAK]])","v":{"v":1100,"d":"1,100 kn"}},{"$f":"TBL_Summary[[#This Row],[PROCIJENJENI TROŠAK]]/SUM(TBL_Summary[PROCIJENJENI TROŠAK])","v":{"v":0.13445378151260504,"d":"13.4%"}},{"$nulls":3},"Odjeća",{"$f":"TBL_Attire[[#Totals],[PROCIJENJENO]]","v":4000},{"$f":"TBL_Attire[[#Totals],[STVARNO]]","v":2900},{"$f":"K7-O7/100","v":3999.98},2,2,"Odjeća"]
[null,"Cvijeće i ukrasi",{"$f":"VLOOKUP(TBL_Summary[[#This Row],[KATEGORIJA]],TBL_RankingData,2,FALSE)","v":{"v":3000,"d":"3,000 kn"}},{"$f":"IF(VLOOKUP(TBL_Summary[[#This Row],[KATEGORIJA]],TBL_RankingData,3,FALSE)=0,\"\",VLOOKUP(TBL_Summary[[#This Row],[KATEGORIJA]],TBL_RankingData,3,FALSE))","v":""},{"$f":"IF(OR(TBL_Summary[[#This Row],[PROCIJENJENI TROŠAK]]=\"\",TBL_Summary[[#This Row],[STVARNI TROŠAK]]=\"\"),\"\",TBL_Summary[[#This Row],[PROCIJENJENI TROŠAK]]-TBL_Summary[[#This Row],[STVARNI TROŠAK]])","v":""},{"$f":"TBL_Summary[[#This Row],[PROCIJENJENI TROŠAK]]/SUM(TBL_Summary[PROCIJENJENI TROŠAK])","v":{"v":0.10084033613445378,"d":"10.1%"}},{"$nulls":3},"Cvijeće i ukrasi",{"$f":"TBL_FlowersAndDecor[[#Totals],[PROCIJENJENO]]","v":3000},{"$f":"TBL_FlowersAndDecor[[#Totals],[STVARNO]]","v":0},2999.97,3,3,"Cvijeće i ukrasi"]
[null,"Fotografije i videozapisi",{"$f":"VLOOKUP(TBL_Summary[[#This Row],[KATEGORIJA]],TBL_RankingData,2,FALSE)","v":{"v":2500,"d":"2,500 kn"}},{"$f":"IF(VLOOKUP(TBL_Summary[[#This Row],[KATEGORIJA]],TBL_RankingData,3,FALSE)=0,\"\",VLOOKUP(TBL_Summary[[#This Row],[KATEGORIJA]],TBL_RankingData,3,FALSE))","v":""},{"$f":"IF(OR(TBL_Summary[[#This Row],[PROCIJENJENI TROŠAK]]=\"\",TBL_Summary[[#This Row],[STVARNI TROŠAK]]=\"\"),\"\",TBL_Summary[[#This Row],[PROCIJENJENI TROŠAK]]-TBL_Summary[[#This Row],[STVARNI TROŠAK]])","v":""},{"$f":"TBL_Summary[[#This Row],[PROCIJENJENI TROŠAK]]/SUM(TBL_Summary[PROCIJENJENI TROŠAK])","v":{"v":0.08403361344537816,"d":"8.4%"}},{"$nulls":3},"Glazba",{"$f":"TBL_Music[[#Totals],[PROCIJENJENO]]","v":1800},{"$f":"TBL_Music[[#Totals],[STVARNO]]","v":0},1799.96,5,4,"Fotografije i videozapisi"]
[null,"Glazba",{"$f":"VLOOKUP(TBL_Summary[[#This Row],[KATEGORIJA]],TBL_RankingData,2,FALSE)","v":{"v":1800,"d":"1,800 kn"}},{"$f":"IF(VLOOKUP(TBL_Summary[[#This Row],[KATEGORIJA]],TBL_RankingData,3,FALSE)=0,\"\",VLOOKUP(TBL_Summary[[#This Row],[KATEGORIJA]],TBL_RankingData,3,FALSE))","v":""},{"$f":"IF(OR(TBL_Summary[[#This Row],[PROCIJENJENI TROŠAK]]=\"\",TBL_Summary[[#This Row],[STVARNI TROŠAK]]=\"\"),\"\",TBL_Summary[[#This Row],[PROCIJENJENI TROŠAK]]-TBL_Summary[[#This Row],[STVARNI TROŠAK]])","v":""},{"$f":"TBL_Summary[[#This Row],[PROCIJENJENI TROŠAK]]/SUM(TBL_Summary[PROCIJENJENI TROŠAK])","v":{"v":0.06050420168067227,"d":"6.1%"}},{"$nulls":3},"Fotografije i videozapisi",{"$f":"TBL_PhotographsAndVideo[[#Totals],[PROCIJENJENO]]","v":2500},{"$f":"TBL_PhotographsAndVideo[[#Totals],[STVARNO]]","v":0},2499.95,4,5,"Glazba"]
[null,"Usluge i darovi",{"$f":"VLOOKUP(TBL_Summary[[#This Row],[KATEGORIJA]],TBL_RankingData,2,FALSE)","v":{"v":1100,"d":"1,100 kn"}},{"$f":"IF(VLOOKUP(TBL_Summary[[#This Row],[KATEGORIJA]],TBL_RankingData,3,FALSE)=0,\"\",VLOOKUP(TBL_Summary[[#This Row],[KATEGORIJA]],TBL_RankingData,3,FALSE))","v":""},{"$f":"IF(OR(TBL_Summary[[#This Row],[PROCIJENJENI TROŠAK]]=\"\",TBL_Summary[[#This Row],[STVARNI TROŠAK]]=\"\"),\"\",TBL_Summary[[#This Row],[PROCIJENJENI TROŠAK]]-TBL_Summary[[#This Row],[STVARNI TROŠAK]])","v":""},{"$f":"TBL_Summary[[#This Row],[PROCIJENJENI TROŠAK]]/SUM(TBL_Summary[PROCIJENJENI TROŠAK])","v":{"v":0.03697478991596639,"d":"3.7%"}},{"$nulls":3},"Usluge i darovi",{"$f":"TBL_FavorsAndGifts[[#Totals],[PROCIJENJENO]]","v":1100},{"$f":"TBL_FavorsAndGifts[[#Totals],[STVARNO]]","v":0},1099.94,6,6,"Usluge i darovi"]
[null,{"$f":"P12","v":"Vjenčano prstenje"},{"$f":"VLOOKUP(TBL_Summary[[#This Row],[KATEGORIJA]],TBL_RankingData,2,FALSE)","v":{"v":1100,"d":"1,100 kn"}},{"$f":"IF(VLOOKUP(TBL_Summary[[#This Row],[KATEGORIJA]],TBL_RankingData,3,FALSE)=0,\"\",VLOOKUP(TBL_Summary[[#This Row],[KATEGORIJA]],TBL_RankingData,3,FALSE))","v":""},{"$f":"IF(OR(TBL_Summary[[#This Row],[PROCIJENJENI TROŠAK]]=\"\",TBL_Summary[[#This Row],[STVARNI TROŠAK]]=\"\"),\"\",TBL_Summary[[#This Row],[PROCIJENJENI TROŠAK]]-TBL_Summary[[#This Row],[STVARNI TROŠAK]])","v":""},{"$f":"TBL_Summary[[#This Row],[PROCIJENJENI TROŠAK]]/SUM(TBL_Summary[PROCIJENJENI TROŠAK])","v":{"v":0.03697478991596639,"d":"3.7%"}},{"$nulls":3},"Obred",{"$f":"TBL_Ceremony[[#Totals],[PROCIJENJENO]]","v":800},{"$f":"TBL_Ceremony[[#Totals],[STVARNO]]","v":0},799.93,8,7,"Vjenčano prstenje"]
[null,"Obred",{"$f":"VLOOKUP(TBL_Summary[[#This Row],[KATEGORIJA]],TBL_RankingData,2,FALSE)","v":{"v":800,"d":"800 kn"}},{"$f":"IF(VLOOKUP(TBL_Summary[[#This Row],[KATEGORIJA]],TBL_RankingData,3,FALSE)=0,\"\",VLOOKUP(TBL_Summary[[#This Row],[KATEGORIJA]],TBL_RankingData,3,FALSE))","v":""},{"$f":"IF(OR(TBL_Summary[[#This Row],[PROCIJENJENI TROŠAK]]=\"\",TBL_Summary[[#This Row],[STVARNI TROŠAK]]=\"\"),\"\",TBL_Summary[[#This Row],[PROCIJENJENI TROŠAK]]-TBL_Summary[[#This Row],[STVARNI TROŠAK]])","v":""},{"$f":"TBL_Summary[[#This Row],[PROCIJENJENI TROŠAK]]/SUM(TBL_Summary[PROCIJENJENI TROŠAK])","v":{"v":0.02689075630252101,"d":"2.7%"}},{"$nulls":3},"Tiskanice",{"$f":"TBL_Stationery[[#Totals],[PROCIJENJENO]]","v":500},{"$f":"TBL_Stationery[[#Totals],[STVARNO]]","v":0},499.92,9,8,"Obred"]
[null,"Tiskanice",{"$f":"VLOOKUP(TBL_Summary[[#This Row],[KATEGORIJA]],TBL_RankingData,2,FALSE)","v":{"v":500,"d":"500 kn"}},{"$f":"IF(VLOOKUP(TBL_Summary[[#This Row],[KATEGORIJA]],TBL_RankingData,3,FALSE)=0,\"\",VLOOKUP(TBL_Summary[[#This Row],[KATEGORIJA]],TBL_RankingData,3,FALSE))","v":""},{"$f":"IF(OR(TBL_Summary[[#This Row],[PROCIJENJENI TROŠAK]]=\"\",TBL_Summary[[#This Row],[STVARNI TROŠAK]]=\"\"),\"\",TBL_Summary[[#This Row],[PROCIJENJENI TROŠAK]]-TBL_Summary[[#This Row],[STVARNI TROŠAK]])","v":""},{"$f":"TBL_Summary[[#This Row],[PROCIJENJENI TROŠAK]]/SUM(TBL_Summary[PROCIJENJENI TROŠAK])","v":{"v":0.01680672268907563,"d":"1.7%"}},{"$nulls":3},"Vjenčano prstenje",{"$f":"TBL_WeddingRings[[#Totals],[PROCIJENJENO]]","v":1100},{"$f":"TBL_WeddingRings[[#Totals],[STVARNO]]","v":0},1099.91,7,9,"Tiskanice"]
[null,"Prijevoz",{"$f":"VLOOKUP(TBL_Summary[[#This Row],[KATEGORIJA]],TBL_RankingData,2,FALSE)","v":{"v":450,"d":"450 kn"}},{"$f":"IF(VLOOKUP(TBL_Summary[[#This Row],[KATEGORIJA]],TBL_RankingData,3,FALSE)=0,\"\",VLOOKUP(TBL_Summary[[#This Row],[KATEGORIJA]],TBL_RankingData,3,FALSE))","v":""},{"$f":"IF(OR(TBL_Summary[[#This Row],[PROCIJENJENI TROŠAK]]=\"\",TBL_Summary[[#This Row],[STVARNI TROŠAK]]=\"\"),\"\",TBL_Summary[[#This Row],[PROCIJENJENI TROŠAK]]-TBL_Summary[[#This Row],[STVARNI TROŠAK]])","v":""},{"$f":"TBL_Summary[[#This Row],[PROCIJENJENI TROŠAK]]/SUM(TBL_Summary[PROCIJENJENI TROŠAK])","v":{"v":0.015126050420168067,"d":"1.5%"}},{"$nulls":3},"Prijevoz",{"$f":"TBL_Transportation[[#Totals],[PROCIJENJENO]]","v":450},{"$f":"TBL_Transportation[[#Totals],[STVARNO]]","v":0},449.9,10,10,"Prijevoz"]
[null,"Zbroj",{"$f":"SUBTOTAL(109,TBL_Summary[PROCIJENJENI TROŠAK])","v":{"v":29750,"d":"29,750 kn"}},{"$f":"SUBTOTAL(109,TBL_Summary[STVARNI TROŠAK])","v":{"v":15700,"d":"15,700 kn"}},{"$f":"TBL_Summary[[#Totals],[PROCIJENJENI TROŠAK]]-TBL_Summary[[#Totals],[STVARNI TROŠAK]]","v":{"v":14050,"d":"14,050 kn"}},{"$f":"SUBTOTAL(109,TBL_Summary[% PRORAČUNA])","v":{"v":1,"d":"100%"}}]

{"sheet":"Pojedinosti proračuna","index":1,"n_rows":91,"n_cols":6,"rows_kept":91}
[{"$nulls":5}," "]
[null,"POJEDINOSTI PRORAČUNA"]
[]
[null,"PRIJEM","PROCIJENJENO","STVARNO","ODSTUPANJE"]
[null,"Mjesto održavanja i iznajmljivanje",{"v":8000,"d":"8,000.00 kn"},{"v":7800,"d":"7,800.00 kn"},{"$f":"IF(OR(TBL_Reception[[#This Row],[PROCIJENJENO]]=\"\",TBL_Reception[[#This Row],[STVARNO]]=\"\"),\"\",TBL_Reception[[#This Row],[PROCIJENJENO]]-TBL_Reception[[#This Row],[STVARNO]])","v":{"v":200,"d":"200.00 kn"}}]
[null,"Hrana i usluge",{"v":4000,"d":"4,000.00 kn"},{"v":4200,"d":"4,200.00 kn"},{"$f":"IF(OR(TBL_Reception[[#This Row],[PROCIJENJENO]]=\"\",TBL_Reception[[#This Row],[STVARNO]]=\"\"),\"\",TBL_Reception[[#This Row],[PROCIJENJENO]]-TBL_Reception[[#This Row],[STVARNO]])","v":{"v":-200,"d":"-200.00 kn"}}]
[null,"Pića",{"v":1000,"d":"1,000.00 kn"},{"v":800,"d":"800.00 kn"},{"$f":"IF(OR(TBL_Reception[[#This Row],[PROCIJENJENO]]=\"\",TBL_Reception[[#This Row],[STVARNO]]=\"\"),\"\",TBL_Reception[[#This Row],[PROCIJENJENO]]-TBL_Reception[[#This Row],[STVARNO]])","v":{"v":200,"d":"200.00 kn"}}]
[null,"Torta",{"v":1000,"d":"1,000.00 kn"},null,{"$f":"IF(OR(TBL_Reception[[#This Row],[PROCIJENJENO]]=\"\",TBL_Reception[[#This Row],[STVARNO]]=\"\"),\"\",TBL_Reception[[#This Row],[PROCIJENJENO]]-TBL_Reception[[#This Row],[STVARNO]])","v":""}]
[null,"Razne naknade",{"v":500,"d":"500.00 kn"},null,{"$f":"IF(OR(TBL_Reception[[#This Row],[PROCIJENJENO]]=\"\",TBL_Reception[[#This Row],[STVARNO]]=\"\"),\"\",TBL_Reception[[#This Row],[PROCIJENJENO]]-TBL_Reception[[#This Row],[STVARNO]])","v":""}]
[null,"UKUPNO ZA PRIJEM",{"$f":"SUBTOTAL(109,TBL_Reception[PROCIJENJENO])","v":{"v":14500,"d":"14,500.00 kn"}},{"$f":"SUBTOTAL(109,TBL_Reception[STVARNO])","v":{"v":12800,"d":"12,800.00 kn"}},{"$f":"TBL_Reception[[#Totals],[PROCIJENJENO]]-TBL_Reception[[#Totals],[STVARNO]]","v":{"v":1700,"d":"1,700.00 kn"}}]
[]
[]
[null,"ODJEĆA","PROCIJENJENO","STVARNO","ODSTUPANJE"]
[null,"Smoking, odijelo i/ili haljine",{"v":3000,"d":"3,000.00 kn"},{"v":2900,"d":"2,900.00 kn"},{"$f":"IF(OR(TBL_Attire[[#This Row],[PROCIJENJENO]]=\"\",TBL_Attire[[#This Row],[STVARNO]]=\"\"),\"\",TBL_Attire[[#This Row],[PROCIJENJENO]]-TBL_Attire[[#This Row],[STVARNO]])","v":{"v":100,"d":"100.00 kn"}}]
[null,"Prepravci",{"v":100,"d":"100.00 kn"},null,{"$f":"IF(OR(TBL_Attire[[#This Row],[PROCIJENJENO]]=\"\",TBL_Attire[[#This Row],[STVARNO]]=\"\"),\"\",TBL_Attire[[#This Row],[PROCIJENJENO]]-TBL_Attire[[#This Row],[STVARNO]])","v":""}]
[null,"Ukras za glavu i veo",{"v":200,"d":"200.00 kn"},null,{"$f":"IF(OR(TBL_Attire[[#This Row],[PROCIJENJENO]]=\"\",TBL_Attire[[#This Row],[STVARNO]]=\"\"),\"\",TBL_Attire[[#This Row],[PROCIJENJENO]]-TBL_Attire[[#This Row],[STVARNO]])","v":""}]
[null,"Dodaci",{"v":100,"d":"100.00 kn"},null,{"$f":"IF(OR(TBL_Attire[[#This Row],[PROCIJENJENO]]=\"\",TBL_Attire[[#This Row],[STVARNO]]=\"\"),\"\",TBL_Attire[[#This Row],[PROCIJENJENO]]-TBL_Attire[[#This Row],[STVARNO]])","v":""}]
[null,"Frizura i šminka",{"v":500,"d":"500.00 kn"},null,{"$f":"IF(OR(TBL_Attire[[#This Row],[PROCIJENJENO]]=\"\",TBL_Attire[[#This Row],[STVARNO]]=\"\"),\"\",TBL_Attire[[#This Row],[PROCIJENJENO]]-TBL_Attire[[#This Row],[STVARNO]])","v":""}]
[null,"Razne naknade",{"v":100,"d":"100.00 kn"},null,{"$f":"IF(OR(TBL_Attire[[#This Row],[PROCIJENJENO]]=\"\",TBL_Attire[[#This Row],[STVARNO]]=\"\"),\"\",TBL_Attire[[#This Row],[PROCIJENJENO]]-TBL_Attire[[#This Row],[STVARNO]])","v":""}]
[null,"UKUPNO ZA ODJEĆU",{"$f":"SUBTOTAL(109,TBL_Attire[PROCIJENJENO])","v":{"v":4000,"d":"4,000.00 kn"}},{"$f":"SUBTOTAL(109,TBL_Attire[STVARNO])","v":{"v":2900,"d":"2,900.00 kn"}},{"$f":"TBL_Attire[[#Totals],[PROCIJENJENO]]-TBL_Attire[[#Totals],[STVARNO]]","v":{"v":1100,"d":"1,100.00 kn"}}]
[]
[]
[null,"CVIJEĆE I UKRASI","PROCIJENJENO","STVARNO","ODSTUPANJE"]
[null,"Cvjetni aranžmani za ceremoniju",{"v":1000,"d":"1,000.00 kn"},null,{"$f":"IF(OR(TBL_FlowersAndDecor[[#This Row],[PROCIJENJENO]]=\"\",TBL_FlowersAndDecor[[#This Row],[STVARNO]]=\"\"),\"\",TBL_FlowersAndDecor[[#This Row],[PROCIJENJENO]]-TBL_FlowersAndDecor[[#This Row],[STVARNO]])","v":""}]
[null,"Pupoljci i košara djevojčice koja baca cvijeće",{"v":500,"d":"500.00 kn"},null,{"$f":"IF(OR(TBL_FlowersAndDecor[[#This Row],[PROCIJENJENO]]=\"\",TBL_FlowersAndDecor[[#This Row],[STVARNO]]=\"\"),\"\",TBL_FlowersAndDecor[[#This Row],[PROCIJENJENO]]-TBL_FlowersAndDecor[[#This Row],[STVARNO]])","v":""}]
[null,"Jastučić za prsten",{"v":100,"d":"100.00 kn"},null,{"$f":"IF(OR(TBL_FlowersAndDecor[[#This Row],[PROCIJENJENO]]=\"\",TBL_FlowersAndDecor[[#This Row],[STVARNO]]=\"\"),\"\",TBL_FlowersAndDecor[[#This Row],[PROCIJENJENO]]-TBL_FlowersAndDecor[[#This Row],[STVARNO]])","v":""}]
[null,"Buketi",{"v":500,"d":"500.00 kn"},null,{"$f":"IF(OR(TBL_FlowersAndDecor[[#This Row],[PROCIJENJENO]]=\"\",TBL_FlowersAndDecor[[#This Row],[STVARNO]]=\"\"),\"\",TBL_FlowersAndDecor[[#This Row],[PROCIJENJENO]]-TBL_FlowersAndDecor[[#This Row],[STVARNO]])","v":""}]
[null,"Ukrasi za zapučak",{"v":100,"d":"100.00 kn"},null,{"$f":"IF(OR(TBL_FlowersAndDecor[[#This Row],[PROCIJENJENO]]=\"\",TBL_FlowersAndDecor[[#This Row],[STVARNO]]=\"\"),\"\",TBL_FlowersAndDecor[[#This Row],[PROCIJENJENO]]-TBL_FlowersAndDecor[[#This Row],[STVARNO]])","v":""}]
[null,"Ukrasi za zapešće",{"v":200,"d":"200.00 kn"},null,{"$f":"IF(OR(TBL_FlowersAndDecor[[#This Row],[PROCIJENJENO]]=\"\",TBL_FlowersAndDecor[[#This Row],[STVARNO]]=\"\"),\"\",TBL_FlowersAndDecor[[#This Row],[PROCIJENJENO]]-TBL_FlowersAndDecor[[#This Row],[STVARNO]])","v":""}]
[null,"Dekoracije prijema",{"v":300,"d":"300.00 kn"},null,{"$f":"IF(OR(TBL_FlowersAndDecor[[#This Row],[PROCIJENJENO]]=\"\",TBL_FlowersAndDecor[[#This Row],[STVARNO]]=\"\"),\"\",TBL_FlowersAndDecor[[#This Row],[PROCIJENJENO]]-TBL_FlowersAndDecor[[#This Row],[STVARNO]])","v":""}]
[null,"Rasvjeta",{"v":200,"d":"200.00 kn"},null,{"$f":"IF(OR(TBL_FlowersAndDecor[[#This Row],[PROCIJENJENO]]=\"\",TBL_FlowersAndDecor[[#This Row],[STVARNO]]=\"\"),\"\",TBL_FlowersAndDecor[[#This Row],[PROCIJENJENO]]-TBL_FlowersAndDecor[[#This Row],[STVARNO]])","v":""}]
[null,"Razne naknade",{"v":100,"d":"100.00 kn"},null,{"$f":"IF(OR(TBL_FlowersAndDecor[[#This Row],[PROCIJENJENO]]=\"\",TBL_FlowersAndDecor[[#This Row],[STVARNO]]=\"\"),\"\",TBL_FlowersAndDecor[[#This Row],[PROCIJENJENO]]-TBL_FlowersAndDecor[[#This Row],[STVARNO]])","v":""}]
[null,"UKUPNO ZA CVIJEĆE I UKRASE",{"$f":"SUBTOTAL(109,TBL_FlowersAndDecor[PROCIJENJENO])","v":{"v":3000,"d":"3,000.00 kn"}},{"$f":"SUBTOTAL(109,TBL_FlowersAndDecor[STVARNO])","v":{"v":0,"d":"0.00 kn"}},{"$f":"TBL_FlowersAndDecor[[#Totals],[PROCIJENJENO]]-TBL_FlowersAndDecor[[#Totals],[STVARNO]]","v":{"v":3000,"d":"3,000.00 kn"}}]
[]
[]
[null,"GLAZBA","PROCIJENJENO","STVARNO","ODSTUPANJE"]
[null,"Glazbenici za obred",{"v":700,"d":"700.00 kn"},null,{"$f":"IF(OR(TBL_Music[[#This Row],[PROCIJENJENO]]=\"\",TBL_Music[[#This Row],[STVARNO]]=\"\"),\"\",TBL_Music[[#This Row],[PROCIJENJENO]]-TBL_Music[[#This Row],[STVARNO]])","v":""}]
[null,"Glazbenici za koktel zabavu",{"v":300,"d":"300.00 kn"},null,{"$f":"IF(OR(TBL_Music[[#This Row],[PROCIJENJENO]]=\"\",TBL_Music[[#This Row],[STVARNO]]=\"\"),\"\",TBL_Music[[#This Row],[PROCIJENJENO]]-TBL_Music[[#This Row],[STVARNO]])","v":""}]
[null,"Bend za prijem, DJ ili zabava",{"v":200,"d":"200.00 kn"},null,{"$f":"IF(OR(TBL_Music[[#This Row],[PROCIJENJENO]]=\"\",TBL_Music[[#This Row],[STVARNO]]=\"\"),\"\",TBL_Music[[#This Row],[PROCIJENJENO]]-TBL_Music[[#This Row],[STVARNO]])","v":""}]
[null,"Iznajmljivanje zvučnog sustava ili plesnog podija",{"v":400,"d":"400.00 kn"},null,{"$f":"IF(OR(TBL_Music[[#This Row],[PROCIJENJENO]]=\"\",TBL_Music[[#This Row],[STVARNO]]=\"\"),\"\",TBL_Music[[#This Row],[PROCIJENJENO]]-TBL_Music[[#This Row],[STVARNO]])","v":""}]
[null,"Razne naknade",{"v":200,"d":"200.00 kn"},null,{"$f":"IF(OR(TBL_Music[[#This Row],[PROCIJENJENO]]=\"\",TBL_Music[[#This Row],[STVARNO]]=\"\"),\"\",TBL_Music[[#This Row],[PROCIJENJENO]]-TBL_Music[[#This Row],[STVARNO]])","v":""}]
[null,"UKUPNO ZA GLAZBU",{"$f":"SUBTOTAL(109,TBL_Music[PROCIJENJENO])","v":{"v":1800,"d":"1,800.00 kn"}},{"$f":"SUBTOTAL(109,TBL_Music[STVARNO])","v":{"v":0,"d":"0.00 kn"}},{"$f":"TBL_Music[[#Totals],[PROCIJENJENO]]-TBL_Music[[#Totals],[STVARNO]]","v":{"v":1800,"d":"1,800.00 kn"}}]
[]
[]
[null,"FOTOGRAFIJE I VIDEOZAPISI","PROCIJENJENO","STVARNO","ODSTUPANJE"]
[null,"Fotografija",{"v":1000,"d":"1,000.00 kn"},null,{"$f":"IF(OR(TBL_PhotographsAndVideo[[#This Row],[PROCIJENJENO]]=\"\",TBL_PhotographsAndVideo[[#This Row],[STVARNO]]=\"\"),\"\",TBL_PhotographsAndVideo[[#This Row],[PROCIJENJENO]]-TBL_PhotographsAndVideo[[#This Row],[STVARNO]])","v":""}]
[null,"Videosnimke",{"v":800,"d":"800.00 kn"},null,{"$f":"IF(OR(TBL_PhotographsAndVideo[[#This Row],[PROCIJENJENO]]=\"\",TBL_PhotographsAndVideo[[#This Row],[STVARNO]]=\"\"),\"\",TBL_PhotographsAndVideo[[#This Row],[PROCIJENJENO]]-TBL_PhotographsAndVideo[[#This Row],[STVARNO]])","v":""}]
[null,"Dodatni ispisi i albumi",{"v":500,"d":"500.00 kn"},null,{"$f":"IF(OR(TBL_PhotographsAndVideo[[#This Row],[PROCIJENJENO]]=\"\",TBL_PhotographsAndVideo[[#This Row],[STVARNO]]=\"\"),\"\",TBL_PhotographsAndVideo[[#This Row],[PROCIJENJENO]]-TBL_PhotographsAndVideo[[#This Row],[STVARNO]])","v":""}]
[null,"Razne naknade",{"v":200,"d":"200.00 kn"},null,{"$f":"IF(OR(TBL_PhotographsAndVideo[[#This Row],[PROCIJENJENO]]=\"\",TBL_PhotographsAndVideo[[#This Row],[STVARNO]]=\"\"),\"\",TBL_PhotographsAndVideo[[#This Row],[PROCIJENJENO]]-TBL_PhotographsAndVideo[[#This Row],[STVARNO]])","v":""}]
[null,"UKUPNO ZA FOTOGRAFIJE I VIDEOZAPISE",{"$f":"SUBTOTAL(109,TBL_PhotographsAndVideo[PROCIJENJENO])","v":{"v":2500,"d":"2,500.00 kn"}},{"$f":"SUBTOTAL(109,TBL_PhotographsAndVideo[STVARNO])","v":{"v":0,"d":"0.00 kn"}},{"$f":"TBL_PhotographsAndVideo[[#Totals],[PROCIJENJENO]]-TBL_PhotographsAndVideo[[#Totals],[STVARNO]]","v":{"v":2500,"d":"2,500.00 kn"}}]
[]
[]
[null,"USLUGE I DAROVI","PROCIJENJENO","STVARNO","ODSTUPANJE"]
[null,"Darovi dobrodošlice",{"v":700,"d":"700.00 kn"},null,{"$f":"IF(OR(TBL_FavorsAndGifts[[#This Row],[PROCIJENJENO]]=\"\",TBL_FavorsAndGifts[[#This Row],[STVARNO]]=\"\"),\"\",TBL_FavorsAndGifts[[#This Row],[PROCIJENJENO]]-TBL_FavorsAndGifts[[#This Row],[STVARNO]])","v":""}]
[null,"Pokloni za zabavu",{"v":200,"d":"200.00 kn"},null,{"$f":"IF(OR(TBL_FavorsAndGifts[[#This Row],[PROCIJENJENO]]=\"\",TBL_FavorsAndGifts[[#This Row],[STVARNO]]=\"\"),\"\",TBL_FavorsAndGifts[[#This Row],[PROCIJENJENO]]-TBL_FavorsAndGifts[[#This Row],[STVARNO]])","v":""}]
[null,"Razne naknade",{"v":200,"d":"200.00 kn"},null,{"$f":"IF(OR(TBL_FavorsAndGifts[[#This Row],[PROCIJENJENO]]=\"\",TBL_FavorsAndGifts[[#This Row],[STVARNO]]=\"\"),\"\",TBL_FavorsAndGifts[[#This Row],[PROCIJENJENO]]-TBL_FavorsAndGifts[[#This Row],[STVARNO]])","v":""}]
[null,"UKUPNO ZA USLUGE I DAROVE",{"$f":"SUBTOTAL(109,TBL_FavorsAndGifts[PROCIJENJENO])","v":{"v":1100,"d":"1,100.00 kn"}},{"$f":"SUBTOTAL(109,TBL_FavorsAndGifts[STVARNO])","v":{"v":0,"d":"0.00 kn"}},{"$f":"TBL_FavorsAndGifts[[#Totals],[PROCIJENJENO]]-TBL_FavorsAndGifts[[#Totals],[STVARNO]]","v":{"v":1100,"d":"1,100.00 kn"}}]
[]
[]
[null,"OBRED","PROCIJENJENO","STVARNO","ODSTUPANJE"]
[null,"Naknada za dvoranu",{"v":500,"d":"500.00 kn"},null,{"$f":"IF(OR(TBL_Ceremony[[#This Row],[PROCIJENJENO]]=\"\",TBL_Ceremony[[#This Row],[STVARNO]]=\"\"),\"\",TBL_Ceremony[[#This Row],[PROCIJENJENO]]-TBL_Ceremony[[#This Row],[STVARNO]])","v":""}]
[null,"Naknada za matičara ili donacija crkvi",{"v":200,"d":"200.00 kn"},null,{"$f":"IF(OR(TBL_Ceremony[[#This Row],[PROCIJENJENO]]=\"\",TBL_Ceremony[[#This Row],[STVARNO]]=\"\"),\"\",TBL_Ceremony[[#This Row],[PROCIJENJENO]]-TBL_Ceremony[[#This Row],[STVARNO]])","v":""}]
[null,"Razne naknade",{"v":100,"d":"100.00 kn"},null,{"$f":"IF(OR(TBL_Ceremony[[#This Row],[PROCIJENJENO]]=\"\",TBL_Ceremony[[#This Row],[STVARNO]]=\"\"),\"\",TBL_Ceremony[[#This Row],[PROCIJENJENO]]-TBL_Ceremony[[#This Row],[STVARNO]])","v":""}]
[null,"UKUPNO ZA OBRED",{"$f":"SUBTOTAL(109,TBL_Ceremony[PROCIJENJENO])","v":{"v":800,"d":"800.00 kn"}},{"$f":"SUBTOTAL(109,TBL_Ceremony[STVARNO])","v":{"v":0,"d":"0.00 kn"}},{"$f":"TBL_Ceremony[[#Totals],[PROCIJENJENO]]-TBL_Ceremony[[#Totals],[STVARNO]]","v":{"v":800,"d":"800.00 kn"}}]
[]
[]
[null,"TISKANICE","PROCIJENJENO","STVARNO","ODSTUPANJE"]
[null,"Posjetnice za vjenčanje",{"v":50,"d":"50.00 kn"},null,{"$f":"IF(OR(TBL_Stationery[[#This Row],[PROCIJENJENO]]=\"\",TBL_Stationery[[#This Row],[STVARNO]]=\"\"),\"\",TBL_Stationery[[#This Row],[PROCIJENJENO]]-TBL_Stationery[[#This Row],[STVARNO]])","v":""}]
[null,"Pozivnice i odgovori na pozivnice",{"v":100,"d":"100.00 kn"},null,{"$f":"IF(OR(TBL_Stationery[[#This Row],[PROCIJENJENO]]=\"\",TBL_Stationery[[#This Row],[STVARNO]]=\"\"),\"\",TBL_Stationery[[#This Row],[PROCIJENJENO]]-TBL_Stationery[[#This Row],[STVARNO]])","v":""}]
[null,"Programi",{"v":50,"d":"50.00 kn"},null,{"$f":"IF(OR(TBL_Stationery[[#This Row],[PROCIJENJENO]]=\"\",TBL_Stationery[[#This Row],[STVARNO]]=\"\"),\"\",TBL_Stationery[[#This Row],[PROCIJENJENO]]-TBL_Stationery[[#This Row],[STVARNO]])","v":""}]
[null,"Kartice s rasporedom sjedenja",{"v":50,"d":"50.00 kn"},null,{"$f":"IF(OR(TBL_Stationery[[#This Row],[PROCIJENJENO]]=\"\",TBL_Stationery[[#This Row],[STVARNO]]=\"\"),\"\",TBL_Stationery[[#This Row],[PROCIJENJENO]]-TBL_Stationery[[#This Row],[STVARNO]])","v":""}]
[null,"Jelovnici",{"v":50,"d":"50.00 kn"},null,{"$f":"IF(OR(TBL_Stationery[[#This Row],[PROCIJENJENO]]=\"\",TBL_Stationery[[#This Row],[STVARNO]]=\"\"),\"\",TBL_Stationery[[#This Row],[PROCIJENJENO]]-TBL_Stationery[[#This Row],[STVARNO]])","v":""}]
[null,"Zahvalnice",{"v":50,"d":"50.00 kn"},null,{"$f":"IF(OR(TBL_Stationery[[#This Row],[PROCIJENJENO]]=\"\",TBL_Stationery[[#This Row],[STVARNO]]=\"\"),\"\",TBL_Stationery[[#This Row],[PROCIJENJENO]]-TBL_Stationery[[#This Row],[STVARNO]])","v":""}]
[null,"Poštarina",{"v":50,"d":"50.00 kn"},null,{"$f":"IF(OR(TBL_Stationery[[#This Row],[PROCIJENJENO]]=\"\",TBL_Stationery[[#This Row],[STVARNO]]=\"\"),\"\",TBL_Stationery[[#This Row],[PROCIJENJENO]]-TBL_Stationery[[#This Row],[STVARNO]])","v":""}]
[null,"Razne naknade",{"v":100,"d":"100.00 kn"},null,{"$f":"IF(OR(TBL_Stationery[[#This Row],[PROCIJENJENO]]=\"\",TBL_Stationery[[#This Row],[STVARNO]]=\"\"),\"\",TBL_Stationery[[#This Row],[PROCIJENJENO]]-TBL_Stationery[[#This Row],[STVARNO]])","v":""}]
[null,"UKUPNO ZA TISKANICE",{"$f":"SUBTOTAL(109,TBL_Stationery[PROCIJENJENO])","v":{"v":500,"d":"500.00 kn"}},{"$f":"SUBTOTAL(109,TBL_Stationery[STVARNO])","v":{"v":0,"d":"0.00 kn"}},{"$f":"TBL_Stationery[[#Totals],[PROCIJENJENO]]-TBL_Stationery[[#Totals],[STVARNO]]","v":{"v":500,"d":"500.00 kn"}}]
[]
[]
[null,"VJENČANO PRSTENJE","PROCIJENJENO","STVARNO","ODSTUPANJE"]
[null,"Vjenčano prstenje",{"v":1000,"d":"1,000.00 kn"},null,{"$f":"IF(OR(TBL_WeddingRings[[#This Row],[PROCIJENJENO]]=\"\",TBL_WeddingRings[[#This Row],[STVARNO]]=\"\"),\"\",TBL_WeddingRings[[#This Row],[PROCIJENJENO]]-TBL_WeddingRings[[#This Row],[STVARNO]])","v":""}]
[null,"Dodaci za prstenje",{"v":100,"d":"100.00 kn"},null,{"$f":"IF(OR(TBL_WeddingRings[[#This Row],[PROCIJENJENO]]=\"\",TBL_WeddingRings[[#This Row],[STVARNO]]=\"\"),\"\",TBL_WeddingRings[[#This Row],[PROCIJENJENO]]-TBL_WeddingRings[[#This Row],[STVARNO]])","v":""}]
[null,"UKUPNO ZA VJENČANO PRSTENJE",{"$f":"SUBTOTAL(109,TBL_WeddingRings[PROCIJENJENO])","v":{"v":1100,"d":"1,100.00 kn"}},{"$f":"SUBTOTAL(109,TBL_WeddingRings[STVARNO])","v":{"v":0,"d":"0.00 kn"}},{"$f":"TBL_WeddingRings[[#Totals],[PROCIJENJENO]]-TBL_WeddingRings[[#Totals],[STVARNO]]","v":{"v":1100,"d":"1,100.00 kn"}}]
[]
[]
[null,"PRIJEVOZ  ","PROCIJENJENO","STVARNO","ODSTUPANJE"]
[null,"Najam glavnog automobila",{"v":100,"d":"100.00 kn"},null,{"$f":"IF(OR(TBL_Transportation[[#This Row],[PROCIJENJENO]]=\"\",TBL_Transportation[[#This Row],[STVARNO]]=\"\"),\"\",TBL_Transportation[[#This Row],[PROCIJENJENO]]-TBL_Transportation[[#This Row],[STVARNO]])","v":""}]
[null,"Najam automobila za goste",{"v":100,"d":"100.00 kn"},null,{"$f":"IF(OR(TBL_Transportation[[#This Row],[PROCIJENJENO]]=\"\",TBL_Transportation[[#This Row],[STVARNO]]=\"\"),\"\",TBL_Transportation[[#This Row],[PROCIJENJENO]]-TBL_Transportation[[#This Row],[STVARNO]])","v":""}]
[null,"Prijevoz za goste izvan grada",{"v":100,"d":"100.00 kn"},null,{"$f":"IF(OR(TBL_Transportation[[#This Row],[PROCIJENJENO]]=\"\",TBL_Transportation[[#This Row],[STVARNO]]=\"\"),\"\",TBL_Transportation[[#This Row],[PROCIJENJENO]]-TBL_Transportation[[#This Row],[STVARNO]])","v":""}]
[null,"Usluga parkiranja",{"v":50,"d":"50.00 kn"},null,{"$f":"IF(OR(TBL_Transportation[[#This Row],[PROCIJENJENO]]=\"\",TBL_Transportation[[#This Row],[STVARNO]]=\"\"),\"\",TBL_Transportation[[#This Row],[PROCIJENJENO]]-TBL_Transportation[[#This Row],[STVARNO]])","v":""}]
[null,"Razne naknade",{"v":100,"d":"100.00 kn"},null,{"$f":"IF(OR(TBL_Transportation[[#This Row],[PROCIJENJENO]]=\"\",TBL_Transportation[[#This Row],[STVARNO]]=\"\"),\"\",TBL_Transportation[[#This Row],[PROCIJENJENO]]-TBL_Transportation[[#This Row],[STVARNO]])","v":""}]
[null,"UKUPNO ZA PRIJEVOZ",{"$f":"SUBTOTAL(109,TBL_Transportation[PROCIJENJENO])","v":{"v":450,"d":"450.00 kn"}},{"$f":"SUBTOTAL(109,TBL_Transportation[STVARNO])","v":{"v":0,"d":"0.00 kn"}},{"$f":"TBL_Transportation[[#Totals],[PROCIJENJENO]]-TBL_Transportation[[#Totals],[STVARNO]]","v":{"v":450,"d":"450.00 kn"}}]